fUSD/lending_fUSD_20240615
["ID","MTS","AMOUNT","RATE_DAILY","PERIOD"]
[329515451,1718410292980,-612.37,0.00023561,3]
[329515452,1718410293011,-5017.63,0.00023561,3]
[329515453,1718410293023,-714.36,0.00023561,3]
[329515454,1718410293060,-298.68580482,0.00023561,3]
[329515455,1718410293092,-500.0,0.00023561,3]
[329515456,1718410293175,-500.0,0.00023561,3]
[329515457,1718410293189,-500.0,0.00023561,3]
[329515458,1718410293206,-500.0,0.00023561,3]
[329515459,1718410293228,-1125.2,0.00023561,3]
[329515460,1718410293271,-500.0,0.00023561,3]
[329515461,1718410293306,-844.74,0.00023561,3]
[329515462,1718410293345,-500.0,0.00023561,3]
[329515463,1718410293386,-500.0,0.00023561,3]
[329515464,1718410293419,-500.0,0.00023561,3]
[329515465,1718410293430,-500.0,0.00023561,3]
[329515466,1718410293466,-373.85,0.00023561,3]
[329515467,1718410293478,-903.03,0.00023561,3]
[329515468,1718410293496,-742.58,0.00023561,3]
[329515469,1718410293514,-361.50611014,0.00023561,3]
[329515470,1718410293526,-234.52,0.00023561,3]
[329515471,1718410293538,-500.0,0.00023561,3]
[329515472,1718410293552,-500.0,0.00023561,3]
[329515473,1718410293569,-500.0,0.00023561,3]
[329515474,1718410293592,-500.0,0.00023561,3]
[329515475,1718410293615,-527.12,0.00023561,3]
[329515476,1718410293627,-870.64,0.00023561,3]
[329515477,1718410293639,-500.0,0.00023561,3]
[329515478,1718410293666,-500.0,0.00023561,3]
[329515479,1718410293678,-500.0,0.00023561,3]
[329515480,1718410293707,-500.0,0.00023561,3]
[329515481,1718410293724,-746.77,0.00023561,3]
[329515482,1718410293742,-500.0,0.00023561,3]
[329515483,1718410293781,-500.0,0.00023561,3]
[329515484,1718410293793,-343.36,0.00023561,3]
[329515485,1718410293865,-2631.88,0.00023561,3]
[329515486,1718410293898,-500.0,0.00023561,3]
[329515487,1718410293912,-1740.68,0.00023561,3]
[329515488,1718410293943,-500.0,0.00023561,3]
[329515489,1718410293977,-500.0,0.00023561,3]
[329515490,1718410294047,-500.0,0.00023561,3]
[329515491,1718410294121,-2758.28,0.00023561,3]
[329515492,1718410294172,-500.0,0.00023561,3]
[329515493,1718410294234,-2886.16,0.00023561,3]
[329515494,1718410294267,-581.17,0.00023561,3]
[329515495,1718410294335,-844.28,0.00023561,3]
[329515496,1718410294400,-160.72275663,0.00023644,2]
[329515497,1718410294427,-155.0,0.000238,2]
[329515498,1718410294439,-1008.54,0.000238,2]
[329515499,1718410294467,-2988.80474067,0.00023812,2]
[329515500,1718410294481,-182.05,0.00023818,2]
[329515501,1718410294540,-1005.14,0.00023835,2]
[329515502,1718410294557,-500.0,0.00023835,3]
[329515503,1718410294599,-500.0,0.00023835,3]
[329515504,1718410294612,-500.0,0.00023835,3]
[329515505,1718410294640,-500.0,0.00023835,3]
[329515506,1718410294653,-1383.49,0.00023835,3]
[329515507,1718410294688,-500.0,0.00023835,3]
[329515508,1718410294716,-500.0,0.00023835,3]
[329515509,1718410294748,-500.0,0.00023835,3]
[329515510,1718410294790,-150.0,0.00023835,3]
[329515511,1718410294826,-500.0,0.00023835,3]
[329515512,1718410294860,-500.0,0.00023835,3]
[329515513,1718410294880,-500.0,0.00023835,3]
[329515514,1718410294925,-500.0,0.00023835,3]
[329515515,1718410294941,-489.86,0.00023835,3]
[329515516,1718410294976,-557.17,0.00023835,3]
[329515517,1718410294991,-675.73,0.00023835,3]
[329515518,1718410295005,-14489.11,0.00023835,3]
[329515519,1718410295072,-500.0,0.00023835,3]
[329515520,1718410295096,-500.0,0.00023835,3]
[329515521,1718410295140,-1484.64,0.00023835,3]
[329515522,1718410295168,-500.0,0.00023835,3]
[329515523,1718410295180,-500.0,0.00023835,3]
[329515524,1718410295213,-500.0,0.00023835,3]
[329515525,1718410295237,-500.0,0.00023835,3]
[329515526,1718410295287,-500.0,0.00023835,3]
[329515527,1718410295302,-246.95127331,0.00023835,3]
[329515528,1718410295389,-3525.04,0.00023835,3]
[329515529,1718410295410,-500.0,0.00023835,3]
[329515530,1718410295472,-1618.45,0.00023835,3]
[329515531,1718410295483,-1550.33,0.00023835,3]
[329515532,1718410295495,-500.0,0.00023835,3]
[329515533,1718410295534,-500.0,0.00023835,3]
[329515534,1718410295590,-500.0,0.00023835,3]
[329515535,1718410295644,-500.0,0.00023835,3]
[329515536,1718410295675,-500.0,0.00023835,3]
[329515537,1718410295716,-1023.73,0.00023835,3]
[329515538,1718410295740,-500.0,0.00023835,3]
[329515539,1718410295753,-500.0,0.00023835,3]
[329515540,1718410295778,-500.0,0.00023835,3]
[329515541,1718410295805,-809.82,0.00023835,3]
[329515542,1718410295820,-21338.5,0.00023835,3]
[329515543,1718410295837,-500.0,0.00023835,3]
[329515544,1718410295874,-500.0,0.00023835,3]
[329515545,1718410295886,-505.46894749,0.00023835,3]
[329515546,1718410295898,-500.0,0.00023835,3]
[329515547,1718410295929,-990.64,0.00023835,3]
[329515548,1718410295996,-1229.59,0.00023835,3]
[329515549,1718410296036,-500.0,0.00023835,3]
[329515550,1718410296088,-669.58,0.00023835,3]
[329515551,1718410296112,-500.0,0.00023835,3]
[329515552,1718410296134,-500.0,0.00023835,3]
[329515553,1718410296162,-500.0,0.00023835,3]
[329515554,1718410296208,-807.18,0.00023835,3]
[329515555,1718410296244,-612.37,0.00023835,3]
[329515556,1718410296284,-5017.63,0.00023835,3]
[329515557,1718410296308,-714.36,0.00023835,3]
[329515558,1718410296326,-500.0,0.00023835,3]
[329515559,1718410296349,-500.0,0.00023835,3]
[329515560,1718410296363,-500.0,0.00023835,3]
[329515561,1718410296404,-500.0,0.00023835,3]
[329515562,1718410296442,-1125.2,0.00023835,3]
[329515563,1718410296466,-500.0,0.00023835,3]
[329515564,1718410296487,-844.74,0.00023835,3]
[329515565,1718410296516,-500.0,0.00023835,3]
[329515566,1718410296559,-500.0,0.00023835,3]
[329515567,1718410296584,-500.0,0.00023835,3]
[329515568,1718410296599,-292.53200292,0.00023835,3]
[329515569,1718410296637,-903.03,0.00023835,3]
[329515570,1718410296688,-742.58,0.00023835,3]
[329515571,1718410296716,-500.0,0.00023835,3]
[329515572,1718410296734,-500.0,0.00023835,3]
[329515573,1718410296746,-500.0,0.00023835,3]
[329515574,1718410296760,-500.0,0.00023835,3]
[329515575,1718410296775,-870.64,0.00023835,3]
[329515576,1718410296813,-500.0,0.00023835,3]
[329515577,1718410296830,-483.78476746,0.00023835,3]
[329515578,1718410296853,-500.0,0.00023835,3]
[329515579,1718410296912,-500.0,0.00023835,3]
[329515580,1718410296969,-746.77,0.00023835,3]
[329515581,1718410296995,-500.0,0.00023835,3]
[329515582,1718410297044,-500.0,0.00023835,3]
[329515583,1718410297084,-2631.88,0.00023835,3]
[329515584,1718410297114,-522.41,0.00023835,3]
[329515585,1718410297180,-1740.68,0.00023835,3]
[329515586,1718410297209,-500.0,0.00023835,3]
[329515587,1718410297237,-500.0,0.00023835,3]
[329515588,1718410297275,-500.0,0.00023835,3]
[329515589,1718410297312,-2758.28,0.00023835,3]
[329515590,1718410297374,-500.0,0.00023835,3]
[329515591,1718410297420,-2886.16,0.00023835,3]
[329515592,1718410297441,-548.0,0.00023913,2]
[329515593,1718410297497,-270.4551539,0.00024,10]
[329515594,1718410297510,-151.21954677,0.00024001,2]
[329515595,1718410297522,-540.76402691,0.00024004,2]
[329515596,1718410297544,-198.25317531,0.00024006,2]
[329515597,1718410297580,-540.76402691,0.0002405,2]
[329515598,1718410297596,-2193.42114598,0.00024062,2]
[329515599,1718410297633,-1019.41802567,0.00024082,2]
[329515600,1718410297650,-2058.7735572,0.000241,2]
[329515601,1718410297706,-171.2344305,0.00024105,2]
[329515602,1718410297728,-500.0,0.00024109,3]
[329515603,1718410297758,-500.0,0.00024109,3]
[329515604,1718410297829,-262.73,0.00024109,3]
[329515605,1718410297850,-500.0,0.00024109,3]
[329515606,1718410297908,-1383.49,0.00024109,3]
[329515607,1718410297948,-500.0,0.00024109,3]
[329515608,1718410297972,-500.0,0.00024109,3]
[329515609,1718410297997,-500.0,0.00024109,3]
[329515610,1718410298009,-508.82855886,0.00024109,3]
[329515611,1718410298060,-150.0,0.00024109,3]
[329515612,1718410298077,-500.0,0.00024109,3]
[329515613,1718410298125,-321.22,0.00024109,3]
[329515614,1718410298148,-482.38,0.00024109,3]
[329515615,1718410298208,-557.17,0.00024109,3]
[329515616,1718410298267,-675.73,0.00024109,3]
[329515617,1718410298295,-14489.11,0.00024109,3]
[329515618,1718410298366,-272.03,0.00024109,3]
[329515619,1718410298382,-500.0,0.00024109,3]
[329515620,1718410298395,-1484.64,0.00024109,3]
[329515621,1718410298444,-500.0,0.00024109,3]
[329515622,1718410298485,-500.0,0.00024109,3]
[329515623,1718410298497,-500.0,0.00024109,3]
[329515624,1718410298509,-500.0,0.00024109,3]
[329515625,1718410298536,-3525.04,0.00024109,3]
[329515626,1718410298548,-500.0,0.00024109,3]
[329515627,1718410298588,-1618.45,0.00024109,3]
[329515628,1718410298613,-1550.33,0.00024109,3]
[329515629,1718410298629,-500.0,0.00024109,3]
[329515630,1718410298652,-500.0,0.00024109,3]
[329515631,1718410298666,-500.0,0.00024109,3]
[329515632,1718410298689,-500.0,0.00024109,3]
[329515633,1718410298707,-179.4133011,0.00024109,3]
[329515634,1718410298719,-1023.73,0.00024109,3]
[329515635,1718410298732,-500.0,0.00024109,3]
[329515636,1718410298755,-500.0,0.00024109,3]
[329515637,1718410298766,-500.0,0.00024109,3]
[329515638,1718410298777,-809.82,0.00024109,3]
[329515639,1718410298816,-21338.5,0.00024109,3]
[329515640,1718410298837,-500.0,0.00024109,3]
[329515641,1718410298863,-500.0,0.00024109,3]
[329515642,1718410298879,-500.0,0.00024109,3]
[329515643,1718410298894,-990.64,0.00024109,3]
[329515644,1718410298937,-1229.59,0.00024109,3]
[329515645,1718410298965,-500.0,0.00024109,3]
[329515646,1718410298978,-669.58,0.00024109,3]
[329515647,1718410299012,-500.0,0.00024109,3]
[329515648,1718410299024,-500.0,0.00024109,3]
[329515649,1718410299078,-500.0,0.00024109,3]
[329515650,1718410299102,-807.18,0.00024109,3]
[329515651,1718410299114,-612.37,0.00024109,3]
[329515652,1718410299140,-5017.63,0.00024109,3]
[329515653,1718410299165,-714.36,0.00024109,3]
[329515654,1718410299180,-500.0,0.00024109,3]
[329515655,1718410299252,-500.0,0.00024109,3]
[329515656,1718410299291,-500.0,0.00024109,3]
[329515657,1718410299324,-500.0,0.00024109,3]
[329515658,1718410299376,-1125.2,0.00024109,3]
[329515659,1718410299427,-500.0,0.00024109,3]
[329515660,1718410299457,-844.74,0.00024109,3]
[329515661,1718410299476,-500.0,0.00024109,3]
[329515662,1718410299524,-500.0,0.00024109,3]
[329515663,1718410299556,-500.0,0.00024109,3]
[329515664,1718410299588,-903.03,0.00024109,3]
[329515665,1718410299599,-742.58,0.00024109,3]
[329515666,1718410299612,-500.0,0.00024109,3]
[329515667,1718410299628,-500.0,0.00024109,3]
[329515668,1718410299638,-500.0,0.00024109,3]
[329515669,1718410299652,-500.0,0.00024109,3]
[329515670,1718410299708,-870.64,0.00024109,3]
[329515671,1718410299748,-500.0,0.00024109,3]
[329515672,1718410299762,-639.18786933,0.00024109,3]
[329515673,1718410299785,-500.0,0.00024109,3]
[329515674,1718410299798,-746.77,0.00024109,3]
[329515675,1718410299810,-500.0,0.00024109,3]
[329515676,1718410299823,-500.0,0.00024109,3]
[329515677,1718410299872,-2631.88,0.00024109,3]
[329515678,1718410299887,-1740.68,0.00024109,3]
[329515679,1718410299905,-500.0,0.00024109,3]
[329515680,1718410299932,-500.0,0.00024109,3]
[329515681,1718410299964,-258.81,0.00024109,3]
[329515682,1718410300000,-2758.28,0.00024109,3]
[329515683,1718410300036,-500.0,0.00024109,3]
[329515684,1718410300066,-2886.16,0.00024109,3]
[329515685,1718410300082,-1019.41802567,0.00024128,2]
[329515686,1718410300120,-1019.41802567,0.00024152,2]
[329515687,1718410300134,-151.21954677,0.00024172,2]
[329515688,1718410300149,-151.21954677,0.00024193,2]
[329515689,1718410300176,-159.81272001,0.00024216,2]
[329515690,1718410300189,-180.0,0.0002423,2]
[329515691,1718410300220,-2193.42114598,0.00024248,2]
[329515692,1718410300305,-2193.42114598,0.00024257,2]
[329515693,1718410300364,-200.0,0.0002426,2]
[329515694,1718410300586,-500.0,0.0002426,2]
[329515695,1718410300597,-153.0437648,0.0002427,2]
[329515696,1718410300612,-2988.80474067,0.00024294,2]
[329515697,1718410300624,-1008.54,0.000243,2]
[329515698,1718410300661,-309.84,0.000243,2]
[329515699,1718410300698,-446.59982923,0.00024321,2]
[329515700,1718410300728,-153.48233137,0.00024323,2]
[329515701,1718410300775,-153.83063426,0.00024352,2]
[329515702,1718410300801,-152.79946212,0.00024354,2]
[329515703,1718410300829,-361.64308651,0.00024383,3]
[329515704,1718410300850,-500.0,0.00024383,3]
[329515705,1718410300868,-500.0,0.00024383,3]
[329515706,1718410300899,-1383.49,0.00024383,3]
[329515707,1718410300922,-500.0,0.00024383,3]
[329515708,1718410300958,-640.40350812,0.00024383,3]
[329515709,1718410301008,-500.0,0.00024383,3]
[329515710,1718410301019,-150.0,0.00024383,3]
[329515711,1718410301048,-500.0,0.00024383,3]
[329515712,1718410301074,-557.17,0.00024383,3]
[329515713,1718410301106,-675.73,0.00024383,3]
[329515714,1718410301135,-14489.11,0.00024383,3]
[329515715,1718410301161,-500.0,0.00024383,3]
[329515716,1718410301197,-1484.64,0.00024383,3]
[329515717,1718410301219,-590.34380465,0.00024383,3]
[329515718,1718410301231,-500.0,0.00024383,3]
[329515719,1718410301269,-500.0,0.00024383,3]
[329515720,1718410301324,-500.0,0.00024383,3]
[329515721,1718410301338,-3525.04,0.00024383,3]
[329515722,1718410301349,-500.0,0.00024383,3]
[329515723,1718410301372,-1618.45,0.00024383,3]
[329515724,1718410301386,-1550.33,0.00024383,3]
[329515725,1718410301398,-500.0,0.00024383,3]
[329515726,1718410301425,-500.0,0.00024383,3]
[329515727,1718410301440,-261.00289207,0.00024383,3]
[329515728,1718410301456,-500.0,0.00024383,3]
[329515729,1718410301489,-1023.73,0.00024383,3]
[329515730,1718410301520,-414.86287269,0.00024383,3]
[329515731,1718410301535,-500.0,0.00024383,3]
[329515732,1718410301548,-500.0,0.00024383,3]
[329515733,1718410301559,-809.82,0.00024383,3]
[329515734,1718410301604,-21338.5,0.00024383,3]
[329515735,1718410301618,-500.0,0.00024383,3]
[329515736,1718410301635,-500.0,0.00024383,3]
[329515737,1718410301652,-500.0,0.00024383,3]
[329515738,1718410301665,-990.64,0.00024383,3]
[329515739,1718410301693,-1229.59,0.00024383,3]
[329515740,1718410301720,-500.0,0.00024383,3]
[329515741,1718410301735,-669.58,0.00024383,3]
[329515742,1718410301765,-243.90481887,0.00024383,3]
[329515743,1718410301799,-500.0,0.00024383,3]
[329515744,1718410301825,-500.0,0.00024383,3]
[329515745,1718410301836,-807.18,0.00024383,3]
[329515746,1718410301889,-612.37,0.00024383,3]
[329515747,1718410301906,-5017.63,0.00024383,3]
[329515748,1718410301918,-714.36,0.00024383,3]
[329515749,1718410301935,-500.0,0.00024383,3]
[329515750,1718410301959,-500.0,0.00024383,3]
[329515751,1718410301998,-500.0,0.00024383,3]
[329515752,1718410302021,-500.0,0.00024383,3]
[329515753,1718410302042,-1125.2,0.00024383,3]
[329515754,1718410302068,-518.69,0.00024383,3]
[329515755,1718410302104,-844.74,0.00024383,3]
[329515756,1718410302144,-500.0,0.00024383,3]
[329515757,1718410302156,-500.0,0.00024383,3]
[329515758,1718410302180,-903.03,0.00024383,3]
[329515759,1718410302194,-742.58,0.00024383,3]
[329515760,1718410302206,-500.0,0.00024383,3]
[329515761,1718410302221,-500.0,0.00024383,3]
[329515762,1718410302257,-500.0,0.00024383,3]
[329515763,1718410302282,-500.0,0.00024383,3]
[329515764,1718410302330,-870.64,0.00024383,3]
[329515765,1718410302379,-500.0,0.00024383,3]
[329515766,1718410302394,-500.0,0.00024383,3]
[329515767,1718410302418,-746.77,0.00024383,3]
[329515768,1718410302434,-500.0,0.00024383,3]
[329515769,1718410302446,-500.0,0.00024383,3]
[329515770,1718410302460,-2631.88,0.00024383,3]
[329515771,1718410302474,-1740.68,0.00024383,3]
[329515772,1718410302491,-500.0,0.00024383,3]
[329515773,1718410302543,-500.0,0.00024383,3]
[329515774,1718410302573,-2758.28,0.00024383,3]
[329515775,1718410302608,-500.0,0.00024383,3]
[329515776,1718410302626,-2886.16,0.00024383,3]
[329515777,1718410302660,-155.01,0.00024384,2]
[329515778,1718410302673,-270.24,0.00024384,2]
[329515779,1718410302698,-250.41456096,0.00024384,2]
[329515780,1718410302732,-2161.28,0.00024402,2]
[329515781,1718410302768,-1019.41802567,0.00024402,2]
[329515782,1718410302810,-198.25317531,0.00024432,2]
[329515783,1718410302824,-151.21954677,0.00024467,2]
[329515784,1718410302837,-155.15668265,0.00024469,2]
[329515785,1718410302886,-153.25500121,0.00024476,2]
[329515786,1718410302897,-153.48233137,0.00024482,2]
[329515787,1718410302908,-472.39,0.00024484,2]
[329515788,1718410302919,-890.77,0.00024493,2]
[329515789,1718410302959,-1486.12028468,0.000245,3]
[329515790,1718410302973,-155.85640552,0.0002457,2]
[329515791,1718410303031,-154.43145431,0.0002458,2]
[329515792,1718410303060,-250.41456096,0.00024586,2]
[329515793,1718410303072,-166.81517629,0.00024597,2]
[329515794,1718410303096,-161.18414086,0.00024616,2]
[329515795,1718410303151,-355.186,0.00024646,2]
[329515796,1718410303200,-173.67371129,0.00024657,3]
[329515797,1718410303225,-500.0,0.00024657,3]
[329515798,1718410303241,-1383.49,0.00024657,3]
[329515799,1718410303254,-500.0,0.00024657,3]
[329515800,1718410303312,-500.0,0.00024657,3]
[329515801,1718410303331,-150.0,0.00024657,3]
[329515802,1718410303359,-500.0,0.00024657,3]
[329515803,1718410303444,-557.17,0.00024657,3]
[329515804,1718410303492,-675.73,0.00024657,3]
[329515805,1718410303511,-14489.11,0.00024657,3]
[329515806,1718410303557,-403.18435232,0.00024657,3]
[329515807,1718410303569,-1484.64,0.00024657,3]
[329515808,1718410303582,-500.0,0.00024657,3]
[329515809,1718410303616,-150.03658368,0.00024657,3]
[329515810,1718410303632,-500.0,0.00024657,3]
[329515811,1718410303648,-3525.04,0.00024657,3]
[329515812,1718410303668,-500.0,0.00024657,3]
[329515813,1718410303684,-1618.45,0.00024657,3]
[329515814,1718410303704,-1550.33,0.00024657,3]
[329515815,1718410303722,-500.0,0.00024657,3]
[329515816,1718410303734,-288.36384588,0.00024657,3]
[329515817,1718410303747,-500.0,0.00024657,3]
[329515818,1718410303788,-1023.73,0.00024657,3]
[329515819,1718410303829,-545.13086922,0.00024657,3]
[329515820,1718410303859,-237.18845323,0.00024657,3]
[329515821,1718410303908,-809.82,0.00024657,3]
[329515822,1718410303929,-21338.5,0.00024657,3]
[329515823,1718410303969,-500.0,0.00024657,3]
[329515824,1718410303993,-500.0,0.00024657,3]
[329515825,1718410304031,-500.0,0.00024657,3]
[329515826,1718410304045,-990.64,0.00024657,3]
[329515827,1718410304100,-1229.59,0.00024657,3]
[329515828,1718410304135,-500.0,0.00024657,3]
[329515829,1718410304183,-669.58,0.00024657,3]
[329515830,1718410304211,-530.90805206,0.00024657,3]
[329515831,1718410304251,-500.0,0.00024657,3]
[329515832,1718410304316,-807.18,0.00024657,3]
[329515833,1718410304377,-612.37,0.00024657,3]
[329515834,1718410304408,-5017.63,0.00024657,3]
[329515835,1718410304447,-714.36,0.00024657,3]
[329515836,1718410304490,-500.0,0.00024657,3]
[329515837,1718410304515,-233.4227331,0.00024657,3]
[329515838,1718410304534,-500.0,0.00024657,3]
[329515839,1718410304563,-500.0,0.00024657,3]
[329515840,1718410304587,-1125.2,0.00024657,3]
[329515841,1718410304601,-844.74,0.00024657,3]
[329515842,1718410304618,-500.99238311,0.00024657,3]
[329515843,1718410304634,-500.0,0.00024657,3]
[329515844,1718410304674,-742.58,0.00024657,3]
[329515845,1718410304716,-903.03,0.00024657,3]
[329515846,1718410304743,-500.0,0.00024657,3]
[329515847,1718410304760,-500.0,0.00024657,3]
[329515848,1718410304774,-500.0,0.00024657,3]
[329515849,1718410304788,-500.0,0.00024657,3]
[329515850,1718410304804,-870.64,0.00024657,3]
[329515851,1718410304819,-500.0,0.00024657,3]
[329515852,1718410304844,-500.0,0.00024657,3]
[329515853,1718410304868,-746.77,0.00024657,3]
[329515854,1718410304906,-500.0,0.00024657,3]
[329515855,1718410304932,-500.0,0.00024657,3]
[329515856,1718410304974,-2631.88,0.00024657,3]
[329515857,1718410305001,-1740.68,0.00024657,3]
[329515858,1718410305045,-500.0,0.00024657,3]
[329515859,1718410305092,-500.0,0.00024657,3]
[329515860,1718410305104,-2758.28,0.00024657,3]
[329515861,1718410305137,-500.0,0.00024657,3]
[329515862,1718410305149,-2886.16,0.00024657,3]
[329515863,1718410305173,-167.14290053,0.00024678,2]
[329515864,1718410305184,-158.27876526,0.00024697,2]
[329515865,1718410305196,-152.79946212,0.00024737,2]
[329515866,1718410305207,-154.60031802,0.0002474,2]
[329515867,1718410305218,-250.41456096,0.0002474,2]
[329515868,1718410305229,-171.2344305,0.00024759,2]
[329515869,1718410305246,-2988.80474067,0.00024776,2]
[329515870,1718410305269,-166.81517629,0.00024782,2]
[329515871,1718410305296,-160.00754165,0.00024798,2]
[329515872,1718410305323,-160.00754165,0.00024798,2]
[329515873,1718410305364,-151.61524434,0.00024799,2]
[329515874,1718410305390,-151.61524425,0.00024799,2]
[329515875,1718410305402,-151.61524425,0.00024799,2]
[329515876,1718410305440,-151.61524425,0.00024799,2]
[329515877,1718410305469,-151.61524425,0.00024799,2]
[329515878,1718410305491,-250.41456096,0.000248,2]
[329515879,1718410305504,-152.79946212,0.00024801,2]
[329515880,1718410305515,-153.83063426,0.00024808,2]
[329515881,1718410305542,-155.85640552,0.00024816,2]
[329515882,1718410305589,-1019.41802567,0.00024819,2]
[329515883,1718410305602,-152.79946212,0.00024824,2]
[329515884,1718410305632,-152.79946212,0.00024825,2]
[329515885,1718410305645,-180.26768708,0.0002486,2]
[329515886,1718410305660,-1008.54,0.00024865,2]
[329515887,1718410305671,-155.85640552,0.00024883,2]
[329515888,1718410305683,-153.83063426,0.00024888,2]
[329515889,1718410305718,-201.7302263,0.000249,2]
[329515890,1718410305735,-6803.82836973,0.000249,2]
[329515891,1718410305748,-1170.82039515,0.000249,2]
[329515892,1718410305768,-153.25500121,0.00024908,2]
[329515893,1718410305788,-151.21954677,0.00024911,2]
[329515894,1718410305803,-1019.41802567,0.0002492,2]
[329515895,1718410305820,-500.0,0.00024931,3]
[329515896,1718410305830,-1383.49,0.00024931,3]
[329515897,1718410305852,-500.0,0.00024931,3]
[329515898,1718410305897,-500.0,0.00024931,3]
[329515899,1718410305911,-150.0,0.00024931,3]
[329515900,1718410305929,-500.0,0.00024931,3]
[329515901,1718410305945,-557.17,0.00024931,3]
[329515902,1718410305969,-675.73,0.00024931,3]
[329515903,1718410306001,-14489.11,0.00024931,3]
[329515904,1718410306045,-1484.64,0.00024931,3]
[329515905,1718410306105,-500.0,0.00024931,3]
[329515906,1718410306135,-500.0,0.00024931,3]
[329515907,1718410306165,-3525.04,0.00024931,3]
[329515908,1718410306177,-500.0,0.00024931,3]
[329515909,1718410306206,-1618.45,0.00024931,3]
[329515910,1718410306218,-1550.33,0.00024931,3]
[329515911,1718410306264,-500.0,0.00024931,3]
[329515912,1718410306279,-500.0,0.00024931,3]
[329515913,1718410306313,-1023.73,0.00024931,3]
[329515914,1718410306325,-809.82,0.00024931,3]
[329515915,1718410306368,-21338.5,0.00024931,3]
[329515916,1718410306433,-500.0,0.00024931,3]
[329515917,1718410306449,-500.0,0.00024931,3]
[329515918,1718410306512,-500.0,0.00024931,3]
[329515919,1718410306523,-990.64,0.00024931,3]
[329515920,1718410306542,-1229.59,0.00024931,3]
[329515921,1718410306559,-500.0,0.00024931,3]
[329515922,1718410306570,-669.58,0.00024931,3]
[329515923,1718410306584,-500.0,0.00024931,3]
[329515924,1718410306595,-807.18,0.00024931,3]
[329515925,1718410306615,-612.37,0.00024931,3]
[329515926,1718410306644,-5017.63,0.00024931,3]
[329515927,1718410306684,-714.36,0.00024931,3]
[329515928,1718410306705,-500.0,0.00024931,3]
[329515929,1718410306737,-500.0,0.00024931,3]
[329515930,1718410306849,-327.27718902,0.00024931,3]
[329515931,1718410306872,-1125.2,0.00024931,3]
[329515932,1718410306897,-844.74,0.00024931,3]
[329515933,1718410306920,-500.0,0.00024931,3]
[329515934,1718410306937,-742.58,0.00024931,3]
[329515935,1718410306954,-903.03,0.00024931,3]
[329515936,1718410306997,-500.0,0.00024931,3]
[329515937,1718410307129,-500.0,0.00024931,3]
[329515938,1718410307172,-500.0,0.00024931,3]
[329515939,1718410307184,-500.0,0.00024931,3]
[329515940,1718410307212,-870.64,0.00024931,3]
[329515941,1718410307257,-500.0,0.00024931,3]
[329515942,1718410307282,-500.0,0.00024931,3]
[329515943,1718410307352,-746.77,0.00024931,3]
[329515944,1718410307379,-500.0,0.00024931,3]
[329515945,1718410307417,-500.0,0.00024931,3]
[329515946,1718410307429,-2631.88,0.00024931,3]
[329515947,1718410307456,-1740.68,0.00024931,3]
[329515948,1718410307487,-500.0,0.00024931,3]
[329515949,1718410307532,-640.35493099,0.00024931,3]
[329515950,1718410307573,-2758.28,0.00024931,3]